[Event "Czech Open-GM 2022"]
[Site "Pardubice"]
[Date "2022.07.23"]
[Round "2.32"]
[White "Bokhnak, Timofey"]
[Black "Farkas, Gabor"]
[Result "1/2-1/2"]
[ECO "B22"]
[WhiteElo "2098"]
[BlackElo "2335"]
[Annotator "TA"]
[PlyCount "126"]
[EventDate "2022.07.22"]
[EventType "swiss"]
[EventCountry "CZE"]
[SourceTitle "playchess.com"]
[Source "ChessBase"]
[SourceQuality "1"]
[TimeControl "40/5400+30:1800+30"]

{[%evp 9,126,14,9,6,10,15,16,14,15,-12,49,20,62,58,73,38,91,80,79,75,64,30,22,32,39,26,94,29,32,0,0,0,0,-15,-15,-15,0,0,-8,-39,-15,-7,12,-16,-10,-40,-8,-18,-7,-26,-8,-58,22,16,0,0,0,-48,-28,-34,0,0,4,2,14,0,0,0,0,0,0,0,0,0,0,0,0,0,0,0,0,0,0,0,0,0,0,-39,-39,-39,0,0,0,0,0,0,0,0,0,0,0,0,0,0,0,0,0,0,0,-8,-8,-8,0,0,0,0,0,0,0]} 1. e4 {[%emt 0:00:17][%cal Be2e4,Be4e5][%mdl 32]} c5 {[%emt 0:00:06]} 2. c3 {[%emt 0:00:30]} Nf6 {[%emt 0:00:06]} 3. e5 {[%emt 0:00:11]} Nd5 {[%emt 0:00:05]} 4. Bc4 {[%emt 0:00:05]} e6 {[%emt 0:00:05]} 5. Nf3 {[%emt 0:01:15]} Be7 {[%emt 0:02:40]} 6. O-O {[%emt 0:01:57] B22: Sicilian: 2 c3.} d6 {[%emt 0:00:59]} 7. exd6 {[%emt 0:03:39]} Qxd6 {[%emt 0:02:40]} 8. d4 {[%emt 0:02:39]} cxd4 {[%emt 0:01:48]} 9. Nxd4 {[%emt 0:00:09]} Nb6 {[%emt 0:16:01] [#]} ({Better is} 9... O-O $11) 10. Bd3 $146 {[%emt 0:03:55]} (10. Nb5 $5 {[%cal Rb5d6]} Qc6 11. Bd3 $14) ({Predecessor:} 10. Bb3 O-O 11. Qf3 Nc6 12. Be3 Nxd4 13. Bxd4 e5 14. Be3 Qc6 15. Nd2 Bd7 16. Rfe1 {1-0 (46) Wach,M (2381)-Horvath,T (2375) Austria 2001}) 10... a6 {[%emt 0:01:10]} 11. Qf3 {[%emt 0:07:01]} O-O {[%emt 0:16:41]} 12. Rd1 {[%emt 0:08:44]} e5 {[%emt 0:09:54]} (12... Nd5 $14) 13. Nf5 $16 {[%emt 0:08:25] White is more active.} Bxf5 {[%emt 0:03:00]} 14. Bxf5 {[%emt 0:01:00]} Qc7 {[%emt 0:00:10]} 15. Be4 {[%emt 0:06:21]} Nc6 $1 {[%emt 0:01:05]} 16. Be3 {[%emt 0:02:11]} g6 {[%emt 0:05:04]} 17. Nd2 {[%emt 0:07:26]} Nd8 {[%emt 0:07:37]} (17... f5 $11) 18. Qg3 {[%emt 0:11:37]} (18. Bh6 $16) 18... Na4 $11 {[%emt 0:04:09]} 19. Rab1 {[%emt 0:03:37]} f5 $1 {[%emt 0:04:10]} 20. Bd5+ {[%emt 0:00:44]} Kg7 $1 {[%emt 0:00:32]} 21. Bg5 {[%emt 0:03:47]} ({Don't blunder} 21. Qh3 $2 f4 22. Ne4 fxe3 $19) 21... Bxg5 {[%emt 0:03:59]} 22. Qxg5 {[%emt 0:00:04]} Nf7 {[%emt 0:01:02]} 23. Qg3 {[%emt 0:04:07]} Rae8 {[%emt 0:04:30]} 24. Nf3 {[%emt 0:00:24]} Nb6 {[%emt 0:00:21]} 25. Bb3 {[%emt 0:00:37]} Re7 {[%emt 0:02:25]} 26. Re1 {[%emt 0:01:26]} Nc4 {[%emt 0:02:23]} 27. Qh4 {[%emt 0:05:21]} b5 {[%emt 0:01:00]} 28. Re2 {[%emt 0:03:09]} h6 {[%emt 0:02:06][%cal Bh7h6,Bh6h5][%mdl 32]} 29. Rbe1 {[%emt 0:00:35][%cal Of3d4]} Rfe8 {[%emt 0:00:45]} 30. g4 {[%emt 0:04:28]} (30. a4 $11) 30... fxg4 {[%emt 0:03:50]} (30... f4 $15 31. Bxc4 bxc4) 31. Qxg4 {[%emt 0:00:05]} Qc6 {[%emt 0:00:36]} 32. Bc2 {[%emt 0:02:18][%cal Of3d4] [#] Hoping for Nd4!} Qf6 {[%emt 0:02:30]} 33. h4 {[%emt 0:02:46]} (33. Qg3 $11) 33... h5 {[%emt 0:01:32]} 34. Qg3 {[%emt 0:00:01]} Ncd6 {[%emt 0:00:15]} (34... Nxb2 $5 {[%cal Rb2c4]} 35. Qxg6+ Qxg6+ 36. Bxg6 Kxg6 37. Rxb2 Kf5 $15) 35. Ng5 {[%emt 0:04:02]} Nf5 {[%emt 0:00:32]} 36. Bxf5 {[%emt 0:00:51]} Qxf5 {[%emt 0:00:02]} 37. Re4 {[%emt 0:00:22]} Nxg5 {[%emt 0:01:22]} 38. hxg5 {[%emt 0:00:07]} Re6 {[%emt 0:00:38]} 39. R1e3 {[%emt 0:01:28]} R8e7 {[%emt 0:00:50]} 40. Kg2 {[%emt 0:01:01]} Re8 {[%emt 0:00:33]} 41. Kg1 {[%emt 0:30:29]} Kg8 {[%emt 0:04:50]} 42. a3 {[%emt 0:00:00]} R6e7 {[%emt 0:01:22]} 43. Kh2 {[%emt 0:00:00]} Rf8 {[%emt 0:04:18]} 44. Kg1 {[%emt 0:00:00]} Rfe8 {[%emt 0:00:43]} 45. Kh2 {[%emt 0:00:00]} Rd8 {[%emt 0:06:15]} 46. Re2 {[%emt 0:00:00]} ({Not} 46. Rxe5 $2 h4 47. Rxf5 hxg3+ 48. fxg3 Rd2+ 49. Kh3 Rxe3 $19) 46... Rd2 {[%emt 0:05:08][%cal Od2b2] ...Rxb2! is the strong threat.} 47. Rxd2 {[%emt 0:00:00]} Qxe4 {[%emt 0:00:02][%mdl 4096] Endgame KQR-KQR} 48. Rd3 {[%emt 0:00:00][%cal Bd2d3,Bd3e3,Be3e5,Be5e6,Be6f6][%mdl 32]} Rf7 {[%emt 0:01:55] [#] aiming for ...Rf4.} 49. Re3 {[%emt 0:00:00]} Qf5 {[%emt 0:02:04]} (49... Qc2 {seems wilder.} 50. Rxe5 Rxf2+ 51. Kg1 Rf7) 50. Rxe5 {[%emt 0:00:00] The position is equal.} Qxf2+ {[%emt 0:00:07]} 51. Qxf2 {[%emt 0:00:00]} Rxf2+ {[%emt 0:00:08] KR-KR} 52. Kg3 {[%emt 0:00:00]} Rxb2 {[%emt 0:00:06]} 53. Re6 {[%emt 0:00:00][%csl LRa6,LRg6]} Kf7 {[%emt 0:00:23]} 54. Rf6+ {[%emt 0:00:00]} Kg7 {[%emt 0:00:07]} 55. Rxa6 {[%emt 0:00:00]} Rb3 {[%emt 0:00:02]} 56. Ra7+ {[%emt 0:00:00]} Kf8 {[%emt 0:00:20]} 57. Rc7 {[%emt 0:01:07]} Rxa3 {[%emt 0:00:17] White must now prevent ...b4.} 58. Kf4 {[%emt 0:00:49]} Ra1 {[%emt 0:00:34]} 59. Rc8+ {[%emt 0:01:16]} Ke7 {[%emt 0:00:15] Threatens to win with ...Rf1+.} 60. Rc7+ {[%emt 0:01:02]} Ke8 {[%emt 0:01:13]} 61. Ke5 {[%emt 0:03:35]} Rf1 {[%emt 0:07:11]} 62. Ke6 {[%emt 0:00:09][%cal Rc7c8]} Kd8 {[%emt 0:00:34] Prevents Rc8+.} 63. Rc5 {[%emt 0:00:51]} Rf3 {[%emt 0:00:58] Weighted Error Value: White=0.10 (very precise) /Black=0.11 (very precise)} 1/2-1/2

[Event "Czech Open-GM 2022"]
[Site "Pardubice"]
[Date "2022.07.23"]
[Round "2.33"]
[White "Stinka, Jakub"]
[Black "Jonsson, Gauti Pall"]
[Result "0-1"]
[ECO "E71"]
[WhiteElo "2335"]
[BlackElo "2071"]
[Annotator "TA"]
[PlyCount "70"]
[EventDate "2022.07.22"]
[EventType "swiss"]
[EventCountry "CZE"]
[SourceTitle "playchess.com"]
[Source "ChessBase"]
[SourceQuality "1"]
[TimeControl "40/5400+30:1800+30"]

{[%evp 12,70,43,39,47,25,27,23,20,26,19,16,20,0,0,-25,-30,-73,-70,-77,-77,-62,-29,-50,-41,-54,-50,-54,-22,-216,-203,-372,-404,-394,-393,-381,-392,-391,-365,-374,-368,-347,-329,-350,-243,-337,-335,-337,-337,-315,-268,-357,-356,-338,-362,-379,-400,-733,-723,-643,-622]} 1. d4 {[%emt 0:00:07]} Nf6 {[%emt 0:00:55]} 2. c4 {[%emt 0:00:10]} g6 {[%emt 0:00:42]} 3. Nc3 {[%emt 0:00:09]} Bg7 {[%emt 0:00:10]} 4. e4 {[%emt 0:00:07]} d6 {[%emt 0:00:10]} 5. h3 {[%emt 0:00:17]} O-O {[%emt 0:00:34]} 6. Bg5 {[%emt 0:00:13]} a6 {[%emt 0:00:50]} 7. Nf3 {[%emt 0:03:23]} c5 {[%emt 0:01:06] E90: King's Indian: Classical: Early deviations and 6 h3.} 8. dxc5 {[%emt 0:04:03]} dxc5 {[%emt 0:00:12]} 9. Qxd8 {[%emt 0:00:51]} Rxd8 {[%emt 0:00:09] White has an edge.} 10. e5 {[%emt 0:01:39]} Nfd7 {[%emt 0:02:07]} 11. O-O-O {[%emt 0:06:26]} Nc6 {[%emt 0:03:55]} 12. Nd5 {[%emt 0:03:16] [#]} Kf8 $146 {[%emt 0:05:24]} ({Predecessor:} 12... Ndxe5 13. Nxe7+ Kf8 14. Rxd8+ Nxd8 15. Nxe5 Bxe5 16. Nxc8 Rxc8 17. Bd3 Ne6 18. Bh6+ Bg7 19. Bxg7+ Kxg7 {½-½ (132) Gordievsky,D (2455)-Gabuzyan,H (2540) Budva 2013}) 13. Re1 {[%emt 0:12:44]} h6 {[%emt 0:08:12]} 14. Bh4 {[%emt 0:06:02]} g5 {[%emt 0:03:39]} 15. Bg3 {[%emt 0:00:02] [#]} e6 $1 {[%emt 0:02:56]} 16. Nc3 {[%emt 0:01:16]} Nd4 {[%emt 0:04:36]} 17. Nxd4 {[%emt 0:09:11]} cxd4 {[%emt 0:00:09]} 18. Ne4 {[%emt 0:00:41]} Nxe5 {[%emt 0:06:50][%cal Ob7b5,Bd7e5,Be5c4,Bc4b2][%mdl 32]} 19. Nxg5 {[%emt 0:01:59]} d3 {[%emt 0:04:14]} (19... Nxc4 $5 {[%cal Rd4d3]} 20. Nh7+ (20. Nxf7 $2 d3 $19) 20... Kg8 21. Bxc4 Kxh7 $17) 20. Ne4 {[%emt 0:05:01] Loses the game.} (20. Nh7+ $11 {and White stays safe.} Kg8 21. Rxe5) 20... Nxc4 $19 {[%emt 0:01:44]} 21. Rd1 $2 {[%emt 0:01:38]} (21. b3 d2+ 22. Nxd2 Rxd2 23. Bxc4 Rxa2 24. Kb1 Rb2+ 25. Kc1) 21... Nxb2 {[%emt 0:11:22]} 22. Rd2 {[%emt 0:01:08]} f5 {[%emt 0:05:07]} 23. Nc5 {[%emt 0:02:44]} Bc3 {[%emt 0:00:28]} 24. Bf4 {[%emt 0:05:18]} Bxd2+ {[%emt 0:01:03]} 25. Bxd2 {[%emt 0:00:08]} Nc4 {[%emt 0:02:14]} ({Don't go for} 25... b6 $2 26. Kxb2 bxc5 27. Kc3 $19) 26. Bxh6+ {[%emt 0:02:44]} Kf7 {[%emt 0:00:52] [#] aiming for ...d2+.} 27. Nxd3 {[%emt 0:01:35]} Bd7 {[%emt 0:02:27] And now ...Bb5 would win.} 28. Be2 {[%emt 0:00:34]} Kg6 {[%emt 0:03:25] Inhibits Bg5.} 29. Bf4 {[%emt 0:00:29]} Rac8 {[%emt 0:01:38]} 30. Kb1 {[%emt 0:00:45]} Ba4 {[%emt 0:01:24]} 31. Re1 {[%emt 0:02:56]} Rd5 {[%emt 0:04:51]} 32. Bc1 {[%emt 0:04:40] Against Na3+} e5 {[%emt 0:01:54] Against Nf4+} 33. g4 {[%emt 0:00:19]} f4 {[%emt 0:04:23][%cal Oc4d2]} 34. Bf3 {[%emt 0:01:40]} (34. Ka1 $142) 34... Rb5+ {[%emt 0:01:21]} ({Stronger than} 34... Rxd3 35. Be4+ Kg5 36. Bxd3 $15) 35. Ka1 {[%emt 0:00:22]} Bc2 {[%emt 0:01:04] Weighted Error Value: White=0.43/Black=0.08 (flawless)} 0-1

[Event "Czech Open-GM 2022"]
[Site "Pardubice"]
[Date "2022.07.23"]
[Round "2.34"]
[White "Nurkiewicz, Maciej"]
[Black "Ret, Adam Josef"]
[Result "1/2-1/2"]
[ECO "C41"]
[WhiteElo "2332"]
[BlackElo "2023"]
[Annotator "TA"]
[PlyCount "72"]
[EventDate "2022.07.22"]
[EventType "swiss"]
[EventCountry "CZE"]
[SourceTitle "playchess.com"]
[Source "ChessBase"]
[SourceQuality "1"]
[TimeControl "40/5400+30:1800+30"]

{[%evp 18,72,14,9,6,12,8,0,10,0,0,0,13,15,37,9,24,27,53,53,60,50,58,50,67,45,70,75,63,64,69,62,64,56,66,57,62,55,64,41,43,31,33,7,5,0,11,-16,10,0,0,0,0,0,6,8,38]} 1. e4 {[%emt 0:00:03]} d6 {[%emt 0:00:15]} 2. d4 {[%emt 0:00:00]} Nf6 {[%emt 0:00:00]} 3. Nc3 {[%emt 0:00:00]} e5 {[%emt 0:00:00]} 4. Nf3 {[%emt 0:00:24]} Nbd7 {[%emt 0:00:00]} 5. Bc4 {[%emt 0:00:11]} Be7 {[%emt 0:00:00]} 6. O-O {[%emt 0:04:04]} O-O {[%emt 0:00:00]} 7. Re1 {[%emt 0:00:09]} c6 {[%emt 0:00:17]} 8. a4 {[%emt 0:00:07]} b6 {[%emt 0:01:08]} 9. d5 {[%emt 0:01:44] 9.h3 is more fashionable.} cxd5 {[%emt 0:01:31]} 10. Nxd5 {[%emt 0:00:08]} Nxd5 {[%emt 0:01:22] C41: Philidor Defence.} 11. Bxd5 {[%emt 0:01:39]} Rb8 {[%emt 0:00:06]} 12. b3 {[%emt 0:19:44]} Nf6 {[%emt 0:02:13]} 13. Ba3 {[%emt 0:08:20]} Nxd5 {[%emt 0:23:40]} 14. Qxd5 {[%emt 0:01:32]} Bb7 {[%emt 0:00:32]} 15. Qd3 {[%emt 0:04:01]} Qc7 {[%emt 0:01:16]} 16. Rad1 {[%emt 0:01:55][%cal Ra3d6]} Rbd8 {[%emt 0:00:20]} 17. c4 {[%emt 0:01:40] [#]} Kh8 $146 {[%emt 0:08:44]} ({Predecessor:} 17... Qc6 18. Nd2 Rfe8 19. Nf1 f5 20. Ne3 Qxe4 21. Qxe4 Bxe4 22. f3 f4 23. fxe4 fxe3 24. Rxe3 {½-½ (68) Wessendorf,T (2319)-Vogelmann,P (2287) Germany 2007}) 18. Nd2 {[%emt 0:02:00]} g6 {[%emt 0:09:55]} 19. Nb1 {[%emt 0:00:54]} f5 {[%emt 0:00:18]} 20. f3 {[%emt 0:01:02]} Bc6 {[%emt 0:03:21]} 21. Nc3 {[%emt 0:03:20]} Qb7 {[%emt 0:01:38]} 22. Nd5 {[%emt 0:08:06]} (22. Qc2 {keeps more tension.} fxe4 23. Nxe4 d5 24. cxd5 Bxd5 25. Bb2) 22... Bxd5 {[%emt 0:05:26]} 23. Qxd5 {[%emt 0:00:07]} Qxd5 {[%emt 0:00:12]} 24. Rxd5 {[%emt 0:00:07][%cal Of3f4]} fxe4 {[%emt 0:00:27]} 25. Rxe4 {[%emt 0:03:08]} Kg8 {[%emt 0:02:34]} 26. Kf2 {[%emt 0:07:15]} Kf7 {[%emt 0:08:22]} 27. Ke2 {[%emt 0:00:22]} Ke6 {[%emt 0:00:31]} 28. g3 {[%emt 0:00:20][%cal Bg2g3,Bg3g4][%mdl 32] White is more active.} g5 {[%emt 0:00:14] Against f4} 29. Bb2 {[%emt 0:15:50][%cal Rb2e5] Strongly threatening Bxe5!} Rf5 {[%emt 0:01:40]} 30. g4 {[%emt 0:06:26]} Rf7 {[%emt 0:01:07] The position is equal.} 31. a5 {[%emt 0:03:29]} Bf6 {[%emt 0:02:43]} 32. Kf2 {[%emt 0:04:33]} Rb8 {[%emt 0:00:41]} 33. Rb5 {[%emt 0:00:25]} Rfb7 {[%emt 0:00:21] And now ...bxa5 would win.} 34. a6 {[%emt 0:00:47]} Rc7 {[%emt 0:01:05]} 35. Ba3 {[%emt 0:00:23] Prevents Rc5.} Rh8 {[%emt 0:00:59]} 36. Rd5 {[%emt 0:01:09]} Be7 {[%emt 0:00:37] Weighted Error Value: White=0.08 (flawless) /Black=0.07 (flawless)} 1/2-1/2

[Event "Czech Open-GM 2022"]
[Site "Pardubice"]
[Date "2022.07.23"]
[Round "2.35"]
[White "Jirousek, Jan"]
[Black "Mladek, Richard"]
[Result "1/2-1/2"]
[ECO "D37"]
[WhiteElo "2094"]
[BlackElo "2330"]
[Annotator "TA"]
[PlyCount "75"]
[EventDate "2022.07.22"]
[EventType "swiss"]
[EventCountry "CZE"]
[SourceTitle "playchess.com"]
[Source "ChessBase"]
[SourceQuality "1"]
[TimeControl "40/5400+30:1800+30"]

{[%evp 15,75,7,5,8,4,7,8,0,20,35,44,35,43,14,21,15,70,74,80,74,74,70,78,67,93,92,206,206,235,196,207,183,181,97,126,72,74,48,60,45,58,58,68,47,61,42,45,41,50,31,29,29,29,14,15,16,11,7,13,0,17,6]} 1. d4 {[%emt 0:00:03]} d5 {[%emt 0:00:07]} 2. c4 {[%emt 0:00:04]} e6 {[%emt 0:00:06]} 3. Nc3 {[%emt 0:00:05]} Nf6 {[%emt 0:00:43]} 4. Nf3 {[%emt 0:00:12]} a6 {[%emt 0:00:16]} 5. cxd5 {[%emt 0:00:42]} exd5 {[%emt 0:00:09]} 6. Bf4 {[%emt 0:00:11]} c5 {[%emt 0:04:07]} 7. dxc5 {[%emt 0:02:42]} Bxc5 {[%emt 0:01:52]} 8. e3 {[%emt 0:01:28]} Nc6 {[%emt 0:05:29]} 9. Be2 {[%emt 0:08:32] D32: Tarrasch Defence: Sidelines and lines without g3.} O-O {[%emt 0:02:08]} 10. O-O {[%emt 0:00:22]} Be6 {[%emt 0:01:22]} 11. Rc1 {[%emt 0:02:13]} Qe7 {[%emt 0:02:21] [#]} 12. Ne5 $146 {[%emt 0:03:41]} ({Predecessor:} 12. Na4 Bd6 13. Bxd6 Qxd6 14. Nd4 Ne4 15. Bf3 Ne5 16. Nxe6 Qxe6 17. Nc3 Nxf3+ 18. gxf3 Nxc3 19. Rxc3 Rad8 20. Qd4 Rd6 21. Kh1 Qh3 22. Qg4 Qxf1+ {0-1 (22) Villegas,P (2367)-Tristan,L (2535) Chess.com INT 2021}) 12... Ba7 {[%emt 0:07:48]} 13. Bf3 {[%emt 0:10:34]} Rac8 {[%emt 0:10:13]} 14. Qa4 {[%emt 0:07:55]} Nxe5 {[%emt 0:07:42]} 15. Bxe5 {[%emt 0:03:28]} Nd7 {[%emt 0:06:01]} (15... Rc4 $11 16. Qb3 Ne4) 16. Bg3 $14 {[%emt 0:02:43] White is more active.} Nb6 {[%emt 0:10:19]} 17. Qc2 {[%emt 0:07:09]} Rfd8 {[%emt 0:02:24]} 18. Rfd1 {[%emt 0:01:17]} h6 {[%emt 0:01:50]} 19. b3 {[%emt 0:03:42]} Qf6 {[%emt 0:03:42]} 20. Qd2 {[%emt 0:01:56]} Rc6 {[%emt 0:06:08] [#]} (20... Bb8 $16 {might work better.}) 21. e4 $1 $18 {[%emt 0:07:26][%cal Re4d5]} Rcc8 {[%emt 0:16:28]} 22. Nxd5 {[%emt 0:05:52]} Bxd5 {[%emt 0:00:26]} 23. Rxc8 {[%emt 0:01:24]} Nxc8 {[%emt 0:00:17] [#]} 24. exd5 {[%emt 0:00:12]} (24. e5 $1 $18 {[%cal Re5f6]} Qe7 25. Bxd5) 24... Nd6 {[%emt 0:00:30]} 25. Bxd6 {[%emt 0:04:01]} ({Better is} 25. Qb4) 25... Qxd6 {[%emt 0:00:30]} 26. Re1 {[%emt 0:03:09]} Bc5 {[%emt 0:02:03]} 27. Qe2 {[%emt 0:01:44]} Bb4 {[%emt 0:00:51]} 28. Rc1 {[%emt 0:00:25]} Kf8 {[%emt 0:01:32]} 29. Qc2 {[%emt 0:04:20]} Re8 {[%emt 0:00:21]} 30. Qc4 {[%emt 0:08:05]} Ba3 {[%emt 0:00:51] Threatens to win with ...b5.} 31. Rf1 {[%emt 0:01:20]} Qc5 {[%emt 0:01:21]} 32. Qxc5+ {[%emt 0:03:12]} Bxc5 $14 {[%emt 0:00:01][%mdl 4096] Endgame KRB-KRB} 33. Rd1 {[%emt 0:01:12]} Bd6 {[%emt 0:00:14]} 34. Kf1 {[%emt 0:01:50]} Rc8 {[%emt 0:00:08] The position is equal.} 35. Be4 {[%emt 0:00:34]} g6 {[%emt 0:02:25]} 36. h3 Ke7 {[%emt 0:00:41]} 37. Ke2 {[%emt 0:01:53]} b6 {[%emt 0:01:09]} 38. g3 {[%emt 0:02:54] Black defended with fortune.  Weighted Error Value: White=0.14 (very precise) /Black=0.15 (very precise)} 1/2-1/2

[Event "Czech Open-GM 2022"]
[Site "Pardubice"]
[Date "2022.07.23"]
[Round "2.36"]
[White "Vojta, Jakub"]
[Black "Vestfal, Jan"]
[Result "1-0"]
[ECO "B48"]
[WhiteElo "2326"]
[BlackElo "1918"]
[Annotator "TA"]
[PlyCount "133"]
[EventDate "2022.07.22"]
[EventType "swiss"]
[EventCountry "CZE"]
[SourceTitle "playchess.com"]
[Source "ChessBase"]
[SourceQuality "1"]
[TimeControl "40/5400+30:1800+30"]

{[%evp 11,133,33,47,5,4,15,20,-25,38,35,59,61,73,28,28,8,9,10,14,0,0,-41,20,11,91,96,297,289,258,196,277,277,307,277,289,286,268,274,283,313,304,260,452,471,470,447,494,323,321,319,300,304,311,306,288,272,288,282,340,327,322,295,303,260,6366,2551,6833,2508,12824,1040,12825,12826,12828,12829,12829,12830,12830,12830,12828,12827,12827,12806,12835,12826,12835,12836,12844,12845,12846,12838,12838,12839,12839,12837,12838,12829,12835,12833,27999,27999,27999,27999,27999,27999,27999,27999,27999,27999,27999,27999,27999,27999,27999,27999,27999,27999,27999,27999,27999,27999,27999,27999,27999,27999]} 1. e4 {[%emt 0:00:02]} c5 {[%emt 0:00:07]} 2. Nf3 {[%emt 0:00:05]} e6 {[%emt 0:00:04]} 3. d4 {[%emt 0:00:03]} cxd4 {[%emt 0:00:05]} 4. Nxd4 {[%emt 0:00:04]} Nc6 {[%emt 0:00:08]} 5. Nc3 {[%emt 0:00:12]} Qc7 {[%emt 0:00:08]} 6. Be3 {[%emt 0:00:05]} a6 {[%emt 0:00:19]} 7. g4 {[%emt 0:00:04] B48: Sicilian: Taimanov: 5 Nc3 Qc7 6 Be3 a6 without Be2.} b5 {[%emt 0:13:34]} 8. Nxc6 {[%emt 0:00:11]} Qxc6 {[%emt 0:00:27]} 9. Qd2 {[%emt 0:00:05] The position is equal.} Nf6 {[%emt 0:10:02]} ({Black should try} 9... b4 $11 10. Ne2 Qxe4) 10. f3 $14 {[%emt 0:05:19]} d6 {[%emt 0:03:31]} 11. O-O-O {[%emt 0:04:07]} Bb7 {[%emt 0:04:35]} 12. Ne2 {[%emt 0:21:46] White is more active.} Nd7 {[%emt 0:05:31]} 13. Nd4 {[%emt 0:02:24]} Qc7 {[%emt 0:00:31]} 14. Kb1 {[%emt 0:09:50][%cal Oc2c4] [#]} d5 $146 {[%emt 0:08:51] Inhibits c4.} ({Predecessor:} 14... Ne5 15. h4 Be7 16. g5 Rc8 17. Rg1 O-O 18. h5 d5 19. f4 Nc4 20. Qf2 Nxe3 21. Qxe3 {1-0 (38) Petkidis,A (2416)-Weber,S (2265) Bassano del Grappa 2022}) 15. exd5 {[%emt 0:11:20]} Bxd5 {[%emt 0:03:37]} 16. Rg1 {[%emt 0:02:40]} Be7 {[%emt 0:08:58]} ({Black should play} 16... Bc5 $15) 17. f4 {[%emt 0:01:52]} O-O-O {[%emt 0:03:09]} (17... O-O $11) 18. a4 $1 $16 {[%emt 0:12:52]} b4 $2 {[%emt 0:08:14] A mistake that costs the game.} (18... Nb6 $16) 19. Bxa6+ $18 {[%emt 0:00:08]} Kb8 {[%emt 0:00:11]} 20. g5 {[%emt 0:11:05]} Qa5 {[%emt 0:02:53] [#]} (20... Ka8 {is a better defense.} 21. Be2 Rc8) 21. Bc4 $1 {[%emt 0:02:32][%mdl 512]} Bb7 {[%emt 0:06:28]} (21... Nb6 22. Bxd5) 22. Qf2 {[%emt 0:02:00]} Nc5 {[%emt 0:01:28]} 23. Nb3 {[%emt 0:00:29]} Nxb3 {[%emt 0:00:44]} 24. Bxb3 {[%emt 0:00:18] aiming for Bb6.} ({Resist} 24. cxb3 $6 Rxd1+ 25. Rxd1 Rc8 $16) 24... Kc7 {[%emt 0:03:50] Against Bb6+} 25. Bd4 {[%emt 0:01:15]} Bc6 {[%emt 0:01:40]} 26. Bxg7 {[%emt 0:03:07]} Rxd1+ $2 {[%emt 0:02:25]} (26... Bc5 27. Qe2 Bxg1) 27. Rxd1 {[%emt 0:00:06]} Ra8 {[%emt 0:00:05]} 28. Qe2 {[%emt 0:03:48]} Bxa4 {[%emt 0:05:26]} 29. Qe5+ {[%emt 0:00:37]} (29. Be5+ Kb6 30. Bxa4 Qxa4 31. Bd4+ Kb7 32. Qe4+ Qc6 33. Qxh7 b3 34. cxb3 Qf3 $18) 29... Qxe5 {[%emt 0:00:56]} 30. Bxe5+ {[%emt 0:00:02]} Kc6 {[%emt 0:00:11]} 31. Bxa4+ {[%emt 0:00:04]} Rxa4 {[%emt 0:00:03][%mdl 4096] Endgame [#] KRB-KRB} 32. Rd3 $1 {[%emt 0:01:40]} Ra5 {[%emt 0:00:47] [#]} 33. Rh3 $1 {[%emt 0:01:17]} Bxg5 {[%emt 0:00:08]} 34. Rxh7 {[%emt 0:00:05]} ({Weaker is} 34. fxg5 Rxe5 35. Rxh7 Rxg5 $11) 34... f6 {[%emt 0:01:17]} 35. fxg5 {[%emt 0:00:17]} Rxe5 {[%emt 0:00:35]} 36. gxf6 {[%emt 0:00:17] KR-KR} Rf5 {[%emt 0:00:05]} 37. f7 {Strongly threatening h4.} b3 $2 {[%emt 0:03:11]} (37... Kd6 38. b3 e5) 38. cxb3 {[%emt 0:00:44] And now b4 would win.} Rf2 {[%emt 0:00:10]} 39. Kc1 {[%emt 0:02:15] b4 is the strong threat.} e5 {[%emt 0:00:06]} 40. Kd1 {[%emt 0:02:28]} e4 {[%emt 0:00:08]} 41. Ke1 {[%emt 0:04:12]} e3 {[%emt 0:01:03]} 42. Rh3 {[%emt 0:00:06]} Rxf7 {[%emt 0:00:07]} 43. Rxe3 {[%emt 0:00:03]} Rf4 {[%emt 0:01:11]} 44. Ke2 {[%emt 0:02:01]} Rh4 {[%emt 0:00:54]} 45. h3 {[%emt 0:00:04]} Kd5 {[%emt 0:00:59]} 46. Kd3 {[%emt 0:00:51]} Rf4 {[%emt 0:00:42]} 47. Kc3 {[%emt 0:00:24]} Rf2 {[%emt 0:00:59]} 48. b4 {[%emt 0:00:19][%cal Bb3b4,Bb4b5][%mdl 32]} Rh2 {[%emt 0:00:11]} 49. b5 {[%emt 0:00:30]} Kc5 {[%emt 0:00:15]} 50. Re5+ {[%emt 0:00:04]} Kb6 {[%emt 0:00:08]} 51. Rh5 {[%emt 0:00:06]} Rf2 {[%emt 0:00:50]} 52. h4 {[%emt 0:01:26]} Rf4 {[%emt 0:00:33]} 53. Kd3 {[%emt 0:00:32]} Rb4 {[%emt 0:01:02]} 54. b3 {[%emt 0:06:37]} Rxb3+ {[%emt 0:10:07]} 55. Kc4 {[%emt 0:00:02] White mates.} Rh3 {[%emt 0:03:07]} 56. Rh6+ {[%emt 0:00:13]} Kb7 {[%emt 0:00:15]} 57. Kc5 {[%emt 0:04:11]} Rc3+ {[%emt 0:00:51]} 58. Kd6 {[%emt 0:00:53]} Rb3 {[%emt 0:02:46]} 59. Rh5 {[%emt 0:00:53]} Kb6 {[%emt 0:01:21]} 60. Re5 {[%emt 0:01:04]} Rb1 {[%emt 0:02:30]} 61. h5 {[%emt 0:00:24]} Rh1 {[%emt 0:02:01]} 62. Ke6 {[%emt 0:00:12]} Kc7 {[%emt 0:00:34]} 63. Rg5 {[%emt 0:00:56]} Rd1 {[%emt 0:00:38]} 64. Rc5+ {[%emt 0:00:49]} Kb6 {[%emt 0:00:42]} 65. Rd5 {[%emt 0:00:02]} Rf1 {[%emt 0:00:53]} 66. Rf5 {[%emt 0:00:02]} Rd1 {[%emt 0:00:25]} 67. Kf6 {[%emt 0:00:07] Weighted Error Value: White=0.18 (very precise) /Black=0.36} 1-0